fUSD/lending_fUSD_20250205
["ID","MTS","AMOUNT","RATE_DAILY","PERIOD"]
[351695608,1738745451221,-343.02,9.347e-05,2]
[351695610,1738745451230,-500.0,9.347e-05,2]
[351695612,1738745451239,-1000.0,9.406e-05,2]
[351695613,1738745451248,-320.500609,9.484e-05,2]
[351695615,1738745451258,-306.574254,9.484e-05,2]
[351695618,1738745451269,-500.0,9.484e-05,2]
[351695619,1738745451278,-825.85,9.484e-05,2]
[351695621,1738745451287,-500.0,9.484e-05,2]
[351695623,1738745451297,-500.0,9.484e-05,2]
[351695625,1738745451307,-500.0,9.484e-05,2]
[351695627,1738745451316,-500.0,9.484e-05,2]
[351695629,1738745451326,-500.0,9.484e-05,2]
[351695631,1738745451335,-1119.95,9.484e-05,2]
[351695633,1738745451344,-500.0,9.484e-05,2]
[351695635,1738745451353,-500.0,9.484e-05,2]
[351695637,1738745451363,-500.0,9.484e-05,2]
[351695639,1738745451373,-500.0,9.484e-05,2]
[351695641,1738745451385,-735.56,9.484e-05,2]
[351695643,1738745451398,-500.0,9.484e-05,2]
[351695645,1738745451407,-500.0,9.484e-05,2]
[351695647,1738745451417,-500.0,9.484e-05,2]
[351695649,1738745451427,-500.0,9.484e-05,2]
[351695651,1738745451437,-500.0,9.484e-05,2]
[351695652,1738745451446,-500.0,9.484e-05,2]
[351695653,1738745451456,-500.0,9.484e-05,2]
[351695654,1738745451465,-500.0,9.484e-05,2]
[351695655,1738745451476,-500.0,9.484e-05,2]
[351695656,1738745451486,-528.65,9.484e-05,2]
[351695657,1738745451496,-500.0,9.484e-05,2]
[351695658,1738745451506,-500.0,9.484e-05,2]
[351695659,1738745451515,-394.6,9.484e-05,2]
[351695660,1738745451523,-159.21,9.484e-05,2]
[351695661,1738745451532,-500.0,9.484e-05,2]
[351695662,1738745451542,-2130.0,9.5e-05,2]
[351695663,1738745451553,-431.40086281,9.533e-05,2]
[351695664,1738745451563,-320.500609,9.621e-05,2]
[351695665,1738745451572,-306.574254,9.621e-05,2]
[351695666,1738745451581,-500.0,9.621e-05,2]
[351695667,1738745451591,-825.85,9.621e-05,2]
[351695668,1738745451600,-500.0,9.621e-05,2]
[351695669,1738745451611,-500.0,9.621e-05,2]
[351695670,1738745451621,-500.0,9.621e-05,2]
[351695671,1738745451631,-614.71,9.621e-05,2]
[351695672,1738745451640,-500.0,9.621e-05,2]
[351695673,1738745451650,-1119.95,9.621e-05,2]
[351695674,1738745451660,-500.0,9.621e-05,2]
[351695675,1738745451669,-500.0,9.621e-05,2]
[351695676,1738745451678,-500.0,9.621e-05,2]
[351695677,1738745451687,-177.63,9.621e-05,2]
[351695678,1738745451697,-735.56,9.621e-05,2]
[351695679,1738745451706,-500.0,9.621e-05,2]
[351695680,1738745451715,-500.0,9.621e-05,2]
[351695681,1738745451723,-500.0,9.621e-05,2]
[351695682,1738745451732,-500.0,9.621e-05,2]
[351695683,1738745451741,-500.0,9.621e-05,2]
[351695684,1738745451752,-500.0,9.621e-05,2]
[351695685,1738745451760,-500.0,9.621e-05,2]
[351695686,1738745451769,-359.44,9.621e-05,2]
[351695687,1738745451778,-500.0,9.621e-05,2]
[351695688,1738745451786,-500.0,9.621e-05,2]
[351695689,1738745451795,-500.0,9.621e-05,2]
[351695690,1738745451804,-500.0,9.621e-05,2]
[351695691,1738745451814,-500.0,9.679e-05,2]
[351695692,1738745451823,-500.0,9.758e-05,2]
[351695693,1738745451833,-825.85,9.758e-05,2]
[351695694,1738745451842,-500.0,9.758e-05,2]
[351695695,1738745451852,-500.0,9.758e-05,2]
[351695696,1738745451861,-500.0,9.758e-05,2]
[351695697,1738745451870,-500.0,9.758e-05,2]
[351695698,1738745451880,-1119.95,9.758e-05,2]
[351695699,1738745451890,-399.59,9.758e-05,2]
[351695700,1738745451900,-500.0,9.758e-05,2]
[351695701,1738745451909,-500.0,9.758e-05,2]
[351695702,1738745451918,-735.56,9.758e-05,2]
[351695703,1738745451928,-500.0,9.758e-05,2]
[351695704,1738745451938,-552.19,9.758e-05,2]
[351695705,1738745451948,-500.0,9.758e-05,2]
[351695706,1738745451958,-500.0,9.758e-05,2]
[351695707,1738745451968,-500.0,9.758e-05,2]
[351695708,1738745451977,-648.43,9.758e-05,2]
[351695709,1738745451987,-500.0,9.758e-05,2]
[351695710,1738745451996,-500.0,9.758e-05,2]
[351695711,1738745452013,-500.0,9.758e-05,2]
[351695712,1738745452026,-500.0,9.758e-05,2]
[351695713,1738745452035,-500.0,9.758e-05,2]
[351695714,1738745452045,-1270.0,9.8e-05,2]
[351695715,1738745452058,-595.68412919,9.857e-05,2]
[351695716,1738745452067,-500.0,9.895e-05,2]
[351695717,1738745452077,-825.85,9.895e-05,2]
[351695718,1738745452087,-500.0,9.895e-05,2]
[351695719,1738745452098,-366.0,9.895e-05,2]
[351695720,1738745452114,-500.0,9.895e-05,2]
[351695721,1738745452124,-434.15,9.895e-05,2]
[351695722,1738745452133,-1119.95,9.895e-05,2]
[351695723,1738745452142,-500.0,9.895e-05,2]
[351695724,1738745452151,-500.0,9.895e-05,2]
[351695725,1738745452162,-735.56,9.895e-05,2]
[351695726,1738745452173,-500.0,9.895e-05,2]
[351695727,1738745452184,-500.0,9.895e-05,2]
[351695728,1738745452195,-500.0,9.895e-05,2]
[351695729,1738745452205,-256.29,9.895e-05,2]
[351695730,1738745452215,-500.0,9.895e-05,2]
[351695731,1738745452226,-500.0,9.895e-05,2]
[351695732,1738745452236,-500.0,9.895e-05,2]
[351695733,1738745452246,-355.25,9.895e-05,2]
[351695734,1738745452256,-500.0,9.895e-05,2]
[351695735,1738745452267,-1899.59999999,9.899e-05,2]
[351695736,1738745452276,-200443.82118939,9.9e-05,2]
[351695737,1738745452286,-168.4,9.919e-05,2]
[351695738,1738745452296,-1220.28,9.952e-05,2]
[351695739,1738745452305,-2953.964227,9.992e-05,2]
[351695740,1738745452313,-4090.1221431,9.993e-05,2]
[351695741,1738745452322,-5226.2800593,9.993e-05,2]
[351695742,1738745452331,-6362.4379754,9.993e-05,2]
[351695743,1738745452341,-7498.5958915,9.993e-05,2]
[351695744,1738745452350,-8634.7538076,9.993e-05,2]
[351695745,1738745452360,-500.0,9.999e-05,2]
[351695746,1738745452369,-183342.14243198,0.0001,2]
[351695747,1738745452570,-281.84799999,0.0001,2]
[351695748,1738745452656,-6732.88527194,0.0001,2]
[351695749,1738745452667,-2866.43,0.0001,2]
[351695750,1738745490789,150.0,0.00017223,120]
[351695753,1738745550800,150.0,0.00018731,120]
[351695758,1738745611367,150.0,0.00018146,120]
[351695760,1738745671088,150.0,0.00017907,120]
[351695761,1738745733798,3498.08,7.98e-05,2]
[351695762,1738745738204,575.85,7.98e-05,2]
[351695763,1738745754317,850.2,7.98e-05,2]
[351695764,1738745772284,23900.0,8.007e-05,2]
[351695765,1738745820609,371.86862823,0.00012,24]
[351695767,1738745826364,2773.23,8.007e-05,2]
[351695768,1738745845779,1685.92,8.007e-05,2]
[351695769,1738745865375,1852.42,8.007e-05,2]
[351695772,1738745910883,150.0,0.00018213,120]
[351695773,1738745980543,241.73,7.858e-05,2]
[351695776,1738746030885,150.0,0.00017889,120]
[351695777,1738746062000,541.48,7.887e-05,2]
[351695778,1738746090758,150.0,0.00018855,120]
[351695797,1738746150780,150.0,0.00018834,120]
[351695798,1738746210754,150.0,0.00018624,120]
[351695799,1738746225922,3174.46,7.896e-05,2]
[351695800,1738746253577,1718.1,7.896e-05,2]
[351695801,1738746270780,150.0,0.00017148,120]
[351695805,1738746289096,908.46,7.833e-05,2]
[351695810,1738746331659,150.0,0.00018385,120]
[351695811,1738746334138,-176.44,8.094e-05,2]
[351695812,1738746334160,-125.75939576,8.131e-05,2]
[351695813,1738746344098,-607.86683832,8.131e-05,2]
[351695817,1738746450809,150.0,0.00015897,120]
[351695818,1738746510748,150.0,0.00018619,120]
[351695819,1738746545100,-766.37376592,8.131e-05,2]
[351695820,1738746545121,-500.0,8.139e-05,2]
[351695821,1738746545141,-948.32,8.147e-05,2]
[351695822,1738746545164,-996.63,8.219e-05,2]
[351695823,1738746545185,-3109.84,8.219e-05,2]
[351695824,1738746545205,-282.93,8.219e-05,2]
[351695825,1738746545239,-170.05,8.219e-05,2]
[351695826,1738746545262,-250.0,8.219e-05,2]
[351695827,1738746545298,-1000.0,8.219e-05,2]
[351695828,1738746545321,-2381.27324504,8.466e-05,2]
[351695829,1738746545344,-2851.09881179,8.58e-05,2]
[351695830,1738746570763,150.0,0.00015567,120]
[351695833,1738746631327,150.0,0.00017061,120]
[351695840,1738746635909,-1278.89999998,8.58e-05,2]
[351695841,1738746636015,-701.28118823,8.58e-05,2]
[351695842,1738746636024,-183.92452695,8.582e-05,2]
[351695843,1738746636068,-255.77,8.582e-05,2]
[351696053,1738746638263,-4391.58547305,8.582e-05,2]
[351696055,1738746638273,-4831.28,8.584e-05,2]
[351696057,1738746638282,-150.0,8.586e-05,2]
[351696059,1738746638291,-4831.28,8.587e-05,2]
[351696061,1738746638301,-4831.28,8.589e-05,2]
[351696063,1738746638310,-4831.28,8.591e-05,2]
[351696065,1738746638320,-4831.28,8.593e-05,2]
[351696067,1738746638330,-4831.28,8.595e-05,2]
[351696069,1738746638339,-4831.28,8.598e-05,2]
[351696071,1738746638348,-4831.28,8.6e-05,2]
[351696073,1738746638357,-4831.28,8.602e-05,2]
[351696075,1738746638366,-4831.28,8.604e-05,2]
[351696077,1738746638375,-4831.28,8.607e-05,2]
[351696079,1738746638385,-4831.28,8.609e-05,2]
[351696081,1738746638393,-4831.28,8.611e-05,2]
[351696083,1738746638402,-4831.28,8.613e-05,2]
[351696085,1738746638412,-4831.28,8.616e-05,2]
[351696087,1738746638421,-4831.28,8.618e-05,2]
[351696089,1738746638430,-4831.28,8.62e-05,2]
[351696091,1738746638439,-189.66063302,8.622e-05,2]
[351696093,1738746638448,-4831.28,8.622e-05,2]
[351696095,1738746638457,-176.44,8.762e-05,2]
[351696097,1738746638467,-261.86862681,8.767e-05,2]
[351696099,1738746638476,-502.92971376,8.799e-05,2]
[351696101,1738746638486,-359.01,8.799e-05,2]
[351696103,1738746638496,-500.0,8.799e-05,2]
[351696105,1738746638505,-500.0,8.799e-05,2]
[351696107,1738746638515,-345.23,8.799e-05,2]
[351696108,1738746638523,-279.74502637,8.799e-05,2]
[351696109,1738746638532,-192.36,8.799e-05,2]
[351696110,1738746638541,-500.0,8.799e-05,2]
[351696111,1738746638550,-500.0,8.799e-05,2]
[351696112,1738746638558,-500.0,8.799e-05,2]
[351696113,1738746638567,-500.0,8.799e-05,2]
[351696114,1738746638576,-500.0,8.863e-05,2]
[351696115,1738746638585,-500.0,8.863e-05,2]
[351696116,1738746638593,-500.0,8.863e-05,2]
[351696117,1738746638602,-500.0,8.863e-05,2]
[351696118,1738746638611,-500.0,8.863e-05,2]
[351696119,1738746638620,-500.0,8.863e-05,2]
[351696120,1738746638628,-500.0,8.863e-05,2]
[351696121,1738746638637,-500.0,8.863e-05,2]
[351696122,1738746638646,-500.0,8.863e-05,2]
[351696123,1738746638654,-500.0,8.863e-05,2]
[351696124,1738746638663,-500.0,8.863e-05,2]
[351696125,1738746638672,-500.0,8.863e-05,2]
[351696126,1738746638681,-500.0,8.863e-05,2]
[351696127,1738746638691,-500.0,8.863e-05,2]
[351696128,1738746638699,-567.32,8.863e-05,2]
[351696129,1738746638708,-5992.68,8.864e-05,2]
[351696130,1738746638717,-63399.29741783,8.864e-05,2]
[351696148,1738746638891,-33.57771074,8.864e-05,2]
[351696260,1738746640591,-500.0,8.863e-05,2]
[351696261,1738746640601,-966.43173063,8.864e-05,2]
[351696262,1738746640612,-2940.10848,8.864e-05,2]
[351696289,1738746643364,-333.07053641,8.863e-05,2]
[351696290,1738746643603,-67.54075994,8.863e-05,2]
[351696302,1738746646344,-99.38870365,8.863e-05,2]
[351696303,1738746646354,-475.0,8.863e-05,2]
[351696304,1738746646364,-2130.84967161,8.864e-05,2]
[351696306,1738746690741,150.0,0.00015741,120]
[351696307,1738746691014,24796.72920861,6.781e-05,7]
[351696308,1738746691297,229746.66174839,6.781e-05,7]
[351696323,1738746751349,150.0,0.00014431,120]
[351696324,1738746811318,150.0,0.00014856,120]
[351696326,1738746870746,150.0,0.00015721,120]
[351696327,1738746887284,5931.11709797,0.00011852,30]
[351696355,1738747455994,500.0,0.000188,120]
[351696356,1738747466051,500.0,0.000188,120]
[351696359,1738747555236,4176.19741988,6.94e-05,2]
[351696361,1738747629110,-371.98985942,8.188e-05,2]
[351696372,1738747760117,-1500.0,8.186e-05,2]
[351696373,1738747760141,-300.0,8.187e-05,2]
[351696374,1738747760164,-12549.0032,8.188e-05,2]
[351696395,1738747831580,-310.529994,8.133e-05,2]
[351696396,1738747831592,-383.520006,8.133e-05,2]
[351696397,1738747831602,-10979.00694058,8.188e-05,2]
[351696398,1738747831612,-1071.12,8.219e-05,2]
[351696399,1738747831621,-169.61,8.219e-05,2]
[351696400,1738747831631,-848.72,8.219e-05,2]
[351696401,1738747831641,-250.0,8.258e-05,2]
[351696402,1738747831651,-524.35,8.297e-05,2]
[351696403,1738747831661,-1000.0,8.328e-05,2]
[351696404,1738747831671,-250.0,8.484e-05,2]
[351696405,1738747831680,-273.93,8.486e-05,2]
[351696406,1738747831690,-150.0,8.616e-05,2]
[351696407,1738747831700,-39683.0890936,8.617e-05,2]
[351696408,1738747831711,-9782.75086642,8.617e-05,2]
[351696457,1738747837367,-2418.26003998,8.617e-05,2]
[351696458,1738747837376,-5584.18181646,8.617e-05,2]
[351696459,1738747837477,-4415.80818354,8.617e-05,2]
[351696460,1738747837487,-1384.11,8.617e-05,2]
[351696461,1738747837495,-299.99,8.664e-05,2]
[351696462,1738747837504,-488.11,8.666e-05,2]
[351696463,1738747837514,-4857.571,8.699e-05,2]
[351696464,1738747837523,-179.482,8.699e-05,2]
[351696465,1738747837534,-3609.989,8.699e-05,2]
[351696466,1738747837543,-2500.0,8.851e-05,2]
[351696467,1738747837552,-500.0,8.944e-05,2]
[351696468,1738747837562,-4364.4607,8.973e-05,2]
[351696469,1738747837572,-848.72,9.247e-05,2]
[351696470,1738747837580,-1867.0,9.3e-05,2]
[351696471,1738747837589,-1000.0,9.369e-05,2]
[351696472,1738747837598,-1000.0,9.4e-05,2]
[351696473,1738747837606,-176.44,9.43e-05,2]
[351696474,1738747837615,-378.48,9.499e-05,2]
[351696475,1738747837624,-500.0,9.499e-05,2]
[351696476,1738747837632,-516.16,9.499e-05,2]
[351696477,1738747837641,-500.0,9.499e-05,2]
[351696478,1738747837650,-500.0,9.499e-05,2]
[351696479,1738747837658,-335.95,9.499e-05,2]
[351696480,1738747837669,-605.66,9.499e-05,2]
[351696481,1738747837677,-421.76,9.499e-05,2]
[351696482,1738747837686,-500.0,9.499e-05,2]
[351696483,1738747837696,-500.0,9.499e-05,2]
[351696484,1738747837705,-500.0,9.499e-05,2]
[351696485,1738747837715,-500.0,9.499e-05,2]
[351696486,1738747837724,-500.0,9.499e-05,2]
[351696487,1738747837734,-500.0,9.499e-05,2]
[351696488,1738747837743,-500.0,9.499e-05,2]
[351696489,1738747837753,-500.0,9.499e-05,2]
[351696490,1738747837762,-500.0,9.499e-05,2]
[351696491,1738747837771,-1000.0,9.499e-05,2]
[351696492,1738747837780,-500.0,9.499e-05,2]
[351696493,1738747837790,-500.0,9.499e-05,2]
[351696494,1738747837799,-500.0,9.499e-05,2]
[351696495,1738747837808,-500.0,9.499e-05,2]
[351696496,1738747837817,-500.0,9.499e-05,2]
[351696497,1738747837827,-576.53369147,9.499e-05,2]
[351696498,1738747837836,-500.0,9.499e-05,2]
[351696499,1738747837845,-551.07499185,9.499e-05,2]
[351696500,1738747837855,-500.0,9.499e-05,2]
[351696501,1738747837864,-467.28,9.499e-05,2]
[351696503,1738747837873,-500.0,9.499e-05,2]
[351696505,1738747837882,-227.5,9.499e-05,2]
[351696507,1738747837891,-500.0,9.499e-05,2]
[351696508,1738747837900,-402.86,9.499e-05,2]
[351696510,1738747837909,-500.0,9.499e-05,2]
[351696512,1738747837918,-500.0,9.499e-05,2]
[351696514,1738747837927,-500.0,9.499e-05,2]
[351696515,1738747837936,-500.0,9.499e-05,2]
[351696516,1738747837946,-535.23816136,9.499e-05,2]
[351696517,1738747837955,-500.0,9.499e-05,2]
[351696518,1738747837964,-348.51566251,9.499e-05,2]
[351696519,1738747837974,-500.0,9.499e-05,2]
[351696520,1738747837983,-500.0,9.499e-05,2]
[351696521,1738747837993,-399.95013617,9.499e-05,2]
[351696522,1738747838002,-500.0,9.499e-05,2]
[351696523,1738747838011,-500.0,9.499e-05,2]
[351696524,1738747838021,-525.58,9.499e-05,2]
[351696525,1738747838031,-500.0,9.499e-05,2]
[351696526,1738747838040,-500.0,9.499e-05,2]
[351696527,1738747838051,-500.0,9.499e-05,2]
[351696528,1738747838060,-500.0,9.499e-05,2]
[351696529,1738747838071,-500.0,9.499e-05,2]
[351696530,1738747838081,-500.0,9.499e-05,2]
[351696531,1738747838093,-500.0,9.499e-05,2]
[351696532,1738747838102,-171.16,9.499e-05,2]
[351696533,1738747838111,-500.0,9.499e-05,2]
[351696534,1738747838120,-543.22,9.499e-05,2]
[351696535,1738747838129,-238.59,9.499e-05,2]
[351696536,1738747838141,-500.0,9.499e-05,2]
[351696537,1738747838150,-500.0,9.499e-05,2]
[351696538,1738747838160,-500.0,9.499e-05,2]
[351696539,1738747838169,-500.0,9.499e-05,2]
[351696540,1738747838179,-500.0,9.499e-05,2]
[351696541,1738747838188,-500.0,9.499e-05,2]
[351696542,1738747838198,-426.38980427,9.499e-05,2]
[351696543,1738747838207,-500.0,9.499e-05,2]
[351696544,1738747838216,-500.0,9.499e-05,2]
[351696545,1738747838225,-500.0,9.499e-05,2]
[351696546,1738747838235,-500.0,9.499e-05,2]
[351696547,1738747838244,-500.0,9.499e-05,2]
[351696548,1738747838253,-500.0,9.499e-05,2]
[351696549,1738747838263,-500.0,9.499e-05,2]
[351696550,1738747838272,-500.0,9.499e-05,2]
[351696551,1738747838283,-500.0,9.499e-05,2]
[351696552,1738747838293,-500.0,9.499e-05,2]
[351696553,1738747838303,-158.936,9.499e-05,2]
[351696554,1738747838312,-40036.48066893,9.5e-05,2]
[351696555,1738747838337,-4705.87331267,9.5e-05,2]
[351696556,1738747838348,-183008.43257123,9.5e-05,2]
[351696557,1738747838360,-339.30327672,9.5e-05,2]
[351696558,1738747838577,-19847.4,9.5e-05,2]
[351696561,1738747839649,-4106.31258657,9.5e-05,2]
[351696562,1738747839662,-978.911491,9.5e-05,2]
[351696563,1738747839706,-3257.85459997,9.5e-05,2]
[351696567,1738747842514,-481.33835077,9.5e-05,2]
[351696568,1738747842570,-563.3999988,9.5e-05,2]
[351696571,1738747845584,-2299.40492664,9.5e-05,2]
[351696572,1738747845596,-434.760005,9.5e-05,2]
[351696573,1738747845694,-49090.51124279,9.5e-05,2]
[351696574,1738747845706,-1558.30887,9.5e-05,2]
[351696575,1738747845807,-14631.3284,9.5e-05,2]
[351696576,1738747845971,-2745.83706501,9.5e-05,2]
[351696620,1738748757143,-263.57118712,8.219e-05,2]
[351696621,1738748836094,-273.20599124,8.219e-05,2]
[351696630,1738749031636,-1098.6,8.219e-05,2]
[351696631,1738749031647,-223.62029579,8.324e-05,2]
[351696632,1738749031750,-26.37970421,8.324e-05,2]
[351696633,1738749031760,-379.21,8.361e-05,2]
[351696634,1738749031771,-196.03700973,8.513e-05,2]
[351696635,1738749031781,-495.28,8.513e-05,2]
[351696636,1738749031792,-1500.0,8.547e-05,2]
[351696637,1738749031803,-486.99354678,8.591e-05,2]
[351696638,1738749031863,-16134.21512151,8.591e-05,2]
[351696639,1738749031976,-343.61629981,8.591e-05,2]
[351696653,1738749037545,-3048.04183831,8.591e-05,2]
[351696654,1738749037596,-29.28568755,8.591e-05,2]
[351696655,1738749037616,-1142.11724043,8.591e-05,2]
[351696656,1738749037659,-1721.07547891,8.591e-05,2]
[351696657,1738749037717,-994.6547867,8.591e-05,2]
[351696688,1738749038139,-150.0,8.6e-05,2]
[351696691,1738749038162,-150.0,8.6e-05,2]
[351696694,1738749038178,-150.0,8.6e-05,2]
[351696696,1738749038187,-2292.13,8.624e-05,2]
[351696698,1738749038196,-273.2,8.624e-05,2]
[351696700,1738749038205,-150.0,8.63e-05,2]
[351696701,1738749038214,-1000.0,8.652e-05,2]
[351696703,1738749038222,-150.0,8.678e-05,2]
[351696704,1738749038231,-395.12,8.678e-05,2]
[351696705,1738749038240,-300.0,8.678e-05,2]
[351696706,1738749038250,-150.0,8.678e-05,2]
[351696708,1738749038259,-170.05,8.704e-05,2]
[351696710,1738749038268,-150.0,8.712e-05,2]
[351696712,1738749038278,-300.0,8.818e-05,2]
[351696714,1738749038288,-9999.99,8.818e-05,2]
[351696716,1738749038297,-310.9611,8.973e-05,2]
[351696717,1738749038307,-3062.34899551,9e-05,2]
[351696725,1738749039745,-2925.79992,9e-05,2]
[351696733,1738749042706,-11056.66243064,9e-05,2]
[351696734,1738749042716,-150.0,9e-05,2]
[351696735,1738749042726,-150.0,9e-05,2]
[351696736,1738749042735,-150.0,9e-05,2]
[351696737,1738749042745,-150.0,9e-05,2]
[351696738,1738749042754,-200.0,9e-05,3]
[351696739,1738749042763,-500.0,9.041e-05,2]
[351696740,1738749042776,-150.0,9.199e-05,2]
[351696741,1738749042785,-1000.0,9.2e-05,2]
[351696742,1738749042793,-500.0,9.3e-05,3]
[351696743,1738749042803,-700.0,9.4e-05,3]
[351696744,1738749042811,-179.482,9.498e-05,2]
[351696745,1738749042820,-2887.991,9.498e-05,2]
[351696746,1738749042832,-1453.42,9.499e-05,2]
[351696747,1738749042841,-304.14456936,9.499e-05,2]
[351696748,1738749042851,-195.85543064,9.499e-05,2]
[351696749,1738749042860,-500.0,9.499e-05,2]
[351696750,1738749042869,-273.96511646,9.499e-05,2]
[351696751,1738749042878,-328.2543214,9.499e-05,2]
[351696773,1738749045793,-171.7456786,9.499e-05,2]
[351696774,1738749045803,-404.6,9.499e-05,2]
[351696775,1738749045813,-502.3481382,9.499e-05,2]
[351696776,1738749045822,-506.19129652,9.499e-05,2]
[351696777,1738749045834,-506.69678476,9.499e-05,2]
[351696778,1738749045844,-452.8948548,9.499e-05,2]
[351696779,1738749045856,-5.51592665,9.499e-05,2]
[351696780,1738749045865,-568.941082,9.499e-05,2]
[351696781,1738749045875,-500.0,9.499e-05,2]
[351696782,1738749045885,-500.0,9.499e-05,2]
[351696783,1738749045893,-500.0,9.499e-05,2]
[351696784,1738749045901,-506.86069354,9.499e-05,2]
[351696785,1738749045909,-578.60657847,9.499e-05,2]
[351696786,1738749045917,-500.0,9.499e-05,2]
[351696787,1738749045923,-500.0,9.499e-05,2]
[351696788,1738749045930,-504.68136873,9.499e-05,2]
[351696789,1738749045939,-500.0,9.499e-05,2]
[351696790,1738749045945,-500.0,9.499e-05,2]
[351696791,1738749045952,-500.0,9.499e-05,2]
[351696792,1738749045959,-500.0,9.499e-05,2]
[351696793,1738749045966,-500.0,9.499e-05,2]
[351696794,1738749045973,-500.0,9.499e-05,2]
[351696795,1738749045980,-500.0,9.499e-05,2]
[351696796,1738749045988,-502.43684008,9.499e-05,2]
[351696797,1738749045996,-500.0,9.499e-05,2]
[351696798,1738749046004,-500.0,9.499e-05,2]
[351696799,1738749046013,-503.5858074,9.499e-05,2]
[351696800,1738749046020,-500.0,9.499e-05,2]
[351696801,1738749046029,-500.0,9.499e-05,2]
[351696802,1738749046036,-500.0,9.499e-05,2]
[351696803,1738749046044,-500.0,9.499e-05,2]
[351696804,1738749046053,-500.0,9.499e-05,2]
[351696805,1738749046062,-510.61,9.499e-05,2]
[351696806,1738749046070,-500.0,9.499e-05,2]
[351696807,1738749046081,-303.67,9.499e-05,2]
[351696808,1738749046091,-560.85,9.499e-05,2]
[351696809,1738749046101,-642.13,9.499e-05,2]
[351696810,1738749046111,-532.47,9.499e-05,2]
[351696811,1738749046121,-500.0,9.499e-05,2]
[351696812,1738749046131,-500.0,9.499e-05,2]
[351696813,1738749046141,-500.0,9.499e-05,2]
[351696814,1738749046151,-500.0,9.499e-05,2]
[351696815,1738749046161,-500.0,9.499e-05,2]
[351696816,1738749046170,-502.14696791,9.499e-05,2]
[351696817,1738749046180,-537.64,9.499e-05,2]
[351696818,1738749046190,-500.0,9.499e-05,2]
[351696819,1738749046203,-500.0,9.499e-05,2]
[351696820,1738749046213,-500.0,9.499e-05,2]
[351696821,1738749046223,-500.0,9.499e-05,2]
[351696822,1738749046232,-500.0,9.499e-05,2]
[351696823,1738749046242,-500.0,9.499e-05,2]
[351696824,1738749046251,-500.0,9.499e-05,2]
[351696825,1738749046261,-226.27,9.499e-05,2]
[351696826,1738749046271,-500.0,9.499e-05,2]
[351696827,1738749046280,-500.0,9.499e-05,2]
[351696828,1738749046290,-500.0,9.499e-05,2]
[351696829,1738749046300,-500.0,9.499e-05,2]
[351696830,1738749046309,-245.6,9.499e-05,2]
[351696831,1738749046319,-500.0,9.499e-05,2]
[351696832,1738749046329,-500.0,9.499e-05,2]
[351696833,1738749046339,-500.0,9.499e-05,2]
[351696834,1738749046348,-500.0,9.499e-05,2]
[351696835,1738749046358,-616.47,9.499e-05,2]
[351696836,1738749046368,-354.42,9.499e-05,2]
[351696837,1738749046378,-881543.13425888,9.5e-05,2]
[351696838,1738749046388,-1000.0,9.5e-05,3]
[351696839,1738749046399,-209.15811578,9.532e-05,2]
[351696840,1738749046408,-500.0,9.562e-05,2]
[351696841,1738749046417,-495.28,9.577e-05,2]
[351696842,1738749046427,-1300.0,9.6e-05,3]
[351696843,1738749046439,-1000.0,9.636e-05,2]
[351696844,1738749046451,-1000.0,9.636e-05,2]
[351696845,1738749046461,-1000.0,9.636e-05,2]
[351696846,1738749046471,-1000.0,9.636e-05,2]
[351696847,1738749046479,-1000.0,9.636e-05,2]
[351696848,1738749046490,-1000.0,9.636e-05,2]
[351696849,1738749046500,-1000.0,9.636e-05,2]
[351696850,1738749046510,-1000.0,9.636e-05,2]
[351696851,1738749046520,-1000.0,9.636e-05,2]
[351696852,1738749046529,-1000.0,9.636e-05,2]
[351696853,1738749046539,-1000.0,9.636e-05,2]
[351696854,1738749046548,-1000.0,9.636e-05,2]
[351696855,1738749046557,-1000.0,9.636e-05,2]
[351696856,1738749046566,-1000.0,9.636e-05,2]